bitfinex-derivatives/quotes_ETHF0:USTF0_20250212
["timestamp","ask_amount","ask_price","bid_price","bid_amount"]
[1739337736715,1.739,2606.9,2606.5,0.00576236]
[1739337736914,3.2078,2606.6,2606.5,0.00576236]
[1739337737119,3.27131468,2606.6,2606.5,0.00576236]
[1739337737711,3.27131468,2606.6,2606.5,0.00303444]
[1739337738120,3.27133034,2606.6,2606.5,0.00303444]
[1739337740312,3.4674882,2606.6,2606.5,0.00303444]
[1739337740714,0.3843,2606.5,2605.5,0.5557]
[1739337740919,3.16005233,2605.9,2605.5,1.1578]
[1739337741220,1.80353995,2605.8,2605.5,1.1578]
[1739337741416,3.2078,2605.7,2605.5,0.6021]
[1739337746829,3.2078,2605.7,2605.6,40.8]
[1739337747127,3.27134238,2605.7,2605.6,40.8]
[1739337749625,3.85374468,2605.7,2605.6,40.8]
[1739337749826,3.85374468,2605.7,2605.3,0.00576236]
[1739337750027,3.16005233,2605.5,2605.3,0.00576236]
[1739337750523,0.06354835,2605.4,2605.3,0.00576236]
[1739337751224,3.27134835,2605.4,2605.3,0.00576236]
[1739337752017,3.27134907,2605.4,2605.3,0.00576236]
[1739337752529,3.2078,2605.4,2605.3,0.00576236]
[1739337753028,1.74,2605.4,2605.3,0.00576236]
[1739337755928,1.74,2605.5,2605.3,0.00576236]
[1739337757326,4.9478,2605.7,2605.3,0.00576236]
[1739337757531,4.9478,2605.7,2605.3,3.16581469]
[1739337757727,3.2078,2606.5,2605.6,3.16005233]
[1739337757930,1.74,2606.2,2605.6,3.16005233]
[1739337758931,1.74576236,2606.2,2605.8,3.2078]
[1739337759132,1.74576236,2606.2,2605.6,3.16005233]
[1739337759324,3.16005233,2606.1,2605.4,1.7567]
[1739337759527,0.06353613,2606.0,2605.4,1.7567]
[1739337762036,3.2078,2605.8,2605.4,1.7567]
[1739337762232,3.2078,2605.8,2605.4,1.1582]
[1739337762436,6.36785233,2605.5,2605.3,0.00576236]
[1739337762732,2.3468,2605.4,2605.3,0.00576236]
[1739337762936,2.41035064,2605.4,2605.3,0.00576236]
[1739337763738,1.74,2605.4,2605.3,0.00576236]
[1739337765230,3.781,2606.1,2605.3,9.16581469]
[1739337765430,1.74,2606.0,2605.4,3.7631]
[1739337765630,1.74,2606.0,2605.7,3.2078]
[1739337765826,1.74,2606.3,2605.8,0.6078]
[1739337766028,1.74,2606.3,2605.9,0.5553]
[1739337766331,3.2078,2606.7,2606.0,3.2078]
[1739337766536,4.9478,2606.7,2606.0,3.8201]
[1739337768339,4.9478,2606.7,2606.1,40.8]
[1739337768736,1.74,2606.7,2606.1,40.8]
[1739337768934,3.8115,2607.0,2606.1,46.8]
[1739337768935,1.74,2606.8,2606.1,46.8]
[1739337769232,1.74,2606.8,2606.4,3.2078]
[1739337769533,0.6037,2607.0,2606.5,0.5634]
[1739337769735,1.74,2606.9,2606.5,0.5634]
[1739337769936,4.9478,2607.3,2606.8,3.2078]
[1739337770433,4.9478,2607.3,2606.8,3.21356236]
[1739337770630,0.6059,2607.4,2606.8,3.21356236]
[1739337770836,1.74,2607.4,2606.8,3.21356236]
[1739337771135,3.2078,2607.7,2607.1,3.2078]
[1739337771342,1.74,2607.5,2607.1,3.2078]
[1739337771539,0.6059,2607.6,2606.8,3.40234411]
[1739337771742,1.739,2607.5,2607.1,3.2078]
[1739337771941,3.2078,2607.7,2607.2,0.5634]
[1739337773944,3.2078,2607.7,2607.3,40.8]
[1739337775145,3.2078,2607.7,2607.2,0.5634]
[1739337775642,3.2078,2607.7,2607.2,41.3634]
[1739337775941,0.06349126,2607.6,2606.9,0.30362442]
[1739337776151,0.62619126,2607.6,2606.8,3.40234411]
[1739337776442,0.5627,2607.6,2606.8,3.40234411]
[1739337777752,3.2078,2607.7,2607.1,3.2078]
[1739337778745,3.2078,2607.7,2606.8,3.7125789]
[1739337778940,0.06349264,2607.6,2606.8,3.7125789]
[1739337779343,0.611,2607.5,2606.8,3.7125789]
[1739337779845,0.5829,2607.4,2606.8,3.7125789]
[1739337780547,0.5829,2607.4,2606.8,3.21356236]
[1739337782047,0.6107,2607.3,2606.8,3.21356236]
[1739337783548,0.5829,2607.4,2606.8,3.21356236]
[1739337785558,2.35,2607.5,2607.0,4.04497392]
[1739337786054,0.611,2607.5,2607.1,3.2078]
[1739337786445,0.611,2607.5,2607.2,0.5598]
[1739337792868,1.1414,2607.9,2607.2,3.71761522]
[1739337793168,1.738,2607.8,2607.2,4.27561522]
[1739337793568,1.738,2607.8,2607.3,40.8]
[1739337794770,0.06348915,2607.7,2607.3,40.8]
[1739337794969,3.15781522,2607.6,2607.1,3.2078]
[1739337796067,3.2078,2607.7,2607.1,3.2078]
[1739337797567,3.2078,2607.7,2607.2,0.5834]
[1739337798069,3.2078,2607.7,2607.3,0.6059]
[1739337798773,3.2078,2607.7,2607.1,3.2078]
[1739337799468,1.7473,2607.9,2607.4,3.2078]
[1739337801772,4.90511522,2607.9,2607.4,3.2078]
[1739337801974,0.06348582,2607.8,2607.4,3.2078]
[1739337802571,0.06348582,2607.8,2607.1,3.2078]
[1739337802973,4.90511522,2607.9,2607.1,3.2078]
[1739337803170,0.06348385,2607.8,2607.1,3.2078]
[1739337803572,4.90511522,2607.9,2607.1,3.2078]
[1739337803772,0.06348529,2607.8,2607.1,3.2078]
[1739337804179,4.90511522,2607.9,2607.1,3.2078]
[1739337804380,0.0634861,2607.8,2607.1,3.2078]
[1739337805273,4.90511522,2607.9,2607.1,3.2078]
[1739337805467,0.06348773,2607.8,2607.1,3.2078]
[1739337806681,1.738,2607.7,2607.1,3.2078]
[1739337809178,1.738,2607.6,2607.1,3.2078]
[1739337812182,1.738,2607.8,2607.2,3.15781522]
[1739337812678,1.738,2607.8,2607.1,3.2078]
[1739337813784,1.738,2607.8,2607.4,3.2078]
[1739337813982,1.738,2607.8,2607.5,0.5576]
[1739337815288,0.76693,2608.5,2607.5,0.5576]
[1739337815289,3.2078,2608.3,2607.7,3.2078]
[1739337815581,3.2078,2608.6,2607.8,3.73631522]
[1739337815882,1.80146598,2608.5,2608.0,3.2078]
[1739337816085,1.738,2608.5,2608.0,3.2078]
[1739337816288,1.738,2608.5,2608.1,0.58]
[1739337820287,3.2078,2608.6,2608.1,0.58]
[1739337820481,1.80146687,2608.5,2608.1,0.58]
[1739337820782,1.738,2608.5,2608.1,0.58]
[1739337821175,1.738,2608.5,2608.0,3.2078]
[1739337821382,0.06346888,2608.4,2608.0,3.2078]
[1739337821688,3.15781522,2608.2,2607.6,3.2078]
[1739337821888,1.8023,2608.1,2607.6,3.2078]
[1739337822289,1.8023,2608.1,2607.5,3.2078]
[1739337822887,3.15781522,2608.0,2607.5,3.2078]
[1739337823487,3.2078,2607.8,2607.3,0.5837]
[1739337823683,3.15781522,2607.7,2607.2,44.0078]
[1739337823883,2.342,2607.6,2607.2,44.0078]
[1739337824084,0.6055,2607.5,2607.2,44.0078]
[1739337825389,0.6055,2607.5,2607.2,40.8]
[1739337825687,2.3161,2607.6,2607.2,43.95781522]
[1739337825888,1.737,2607.6,2607.2,43.95781522]
[1739337826594,2.309,2607.6,2607.2,43.95781522]
[1739337826794,2.309,2607.6,2607.2,40.8]
[1739337827391,2.9052,2607.6,2607.2,40.8]
[1739337827794,0.384,2607.2,2606.8,0.00576236]
[1739337827995,3.2078,2607.0,2606.8,0.00576236]
[1739337828190,1.1797,2606.9,2606.8,0.00576236]
[1739337828792,1.1797,2606.9,2606.8,40.80576236]
[1739337828991,0.5835,2606.9,2606.8,40.80576236]
[1739337829292,1.737,2607.0,2606.8,40.80576236]
[1739337829499,1.738,2607.4,2606.8,40.80576236]
[1739337832502,1.7349,2607.5,2606.8,40.80576236]
[1739337832795,1.738,2607.4,2607.0,3.2078]
[1739337834307,1.1394,2607.5,2607.0,3.2078]
[1739337834308,1.738,2607.5,2607.2,3.15781522]
[1739337834595,1.738,2607.5,2607.3,1.7465]
[1739337834797,3.2078,2607.6,2607.3,1.7465]
[1739337835002,1.738,2607.9,2607.4,3.2078]
[1739337838200,1.8074,2607.8,2607.4,3.2078]
[1739337838701,1.738,2607.9,2607.4,3.2078]
[1739337839100,1.738,2607.9,2607.4,3.39511097]
[1739337840404,1.738,2607.9,2607.4,3.2078]
[1739337840809,8.10361522,2607.9,2607.1,3.2078]
[1739337843304,3.2078,2607.9,2607.4,3.2078]
[1739337843508,1.2064,2608.1,2607.7,3.2078]
[1739337843710,0.5993,2608.1,2607.8,0.6126]
[1739337843906,0.5993,2608.1,2607.9,40.8]
[1739337844606,0.5993,2608.1,2608.0,3.2078]
[1739337845413,1.737,2608.3,2608.0,3.2078]
[1739337846807,0.5576,2608.2,2608.0,3.2078]
[1739337847011,1.737,2608.3,2608.0,3.2078]
[1739337847707,0.06347391,2608.2,2608.0,3.2078]
[1739337847911,1.737,2608.3,2608.0,3.2078]
[1739337848212,1.737,2608.3,2607.8,0.5912]
[1739337848611,1.737,2608.2,2607.8,0.5912]
[1739337849010,1.737,2608.2,2607.9,0.5676]
[1739337850415,1.737,2608.2,2608.0,3.2078]
[1739337851416,1.737,2608.2,2607.9,0.5676]
[1739337853715,1.737,2608.2,2607.7,3.2078]
[1739337853915,3.15781522,2608.3,2607.5,1.45475175]
[1739337854106,6.36561522,2608.0,2607.4,3.2078]
[1739337854311,1.1512,2607.9,2607.4,44.0078]
[1739337854620,0.596,2607.8,2607.4,44.0078]
[1739337855009,0.596,2607.8,2607.4,40.8]
[1739337855522,3.2078,2607.7,2607.4,40.8]
[1739337855716,1.737,2607.6,2607.4,40.8]
[1739337855915,1.737,2607.6,2607.1,3.2078]
[1739337856114,1.737,2607.6,2606.8,3.52413777]
[1739337856310,1.737,2607.6,2606.9,40.8]
[1739337856516,3.15781522,2607.4,2606.9,40.8]
[1739337856712,3.15781522,2607.0,2606.8,0.00576236]
[1739337856917,2.3431,2606.9,2606.8,0.00576236]
[1739337858422,5.6144092,2606.9,2606.8,0.00576236]
[1739337858618,5.6144092,2606.9,2606.5,40.8]
[1739337858813,0.5963,2606.8,2606.5,40.8]
[1739337859013,3.2078,2606.6,2606.5,40.8]
[1739337859217,3.2078,2606.6,2606.1,3.2078]
[1739337859616,3.21352517,2606.6,2606.2,40.8]
[1739337864027,3.15781522,2606.4,2606.2,40.8]
[1739337864218,2.4127268,2606.3,2606.1,0.0057512]
[1739337864421,2.3492,2606.3,2606.1,0.0057512]
[1739337864621,0.5903,2606.2,2606.1,40.8057512]
[1739337868321,3.7981,2606.2,2606.1,0.0057512]
[1739337869529,3.7981,2606.2,2606.1,40.8057512]
[1739337875223,3.7981,2606.2,2606.1,0.0057512]
[1739337875435,10.418531,2606.2,2605.1,3.4021895]
[1739337875635,3.15781522,2605.7,2605.2,40.8]
[1739337875932,3.4788,2605.6,2605.2,40.8]
[1739337876330,3.4788,2605.6,2605.1,3.2078]
[1739337876526,3.4788,2605.6,2605.1,3.2135512]
[1739337877031,3.4788,2605.6,2605.1,44.0135512]
[1739337878934,3.4788,2605.6,2605.1,44.5715512]
[1739337880126,2.9219,2605.6,2605.1,44.5715512]
[1739337880330,2.3117,2605.6,2605.1,45.1651512]
[1739337880837,1.738,2605.6,2605.1,48.32296642]
[1739337882339,1.738,2605.6,2605.4,3.2078]
[1739337882534,1.738,2605.6,2605.5,0.5926]
[1739337883041,1.738,2605.6,2605.5,41.3926]
[1739337884442,1.738,2605.6,2605.5,0.5926]
[1739337886238,0.5767,2606.1,2605.5,0.5926]
[1739337886239,1.738,2605.8,2605.5,0.5926]
[1739337886442,1.738,2605.8,2605.6,0.5978]
[1739337887141,1.738,2605.8,2605.7,0.6025]
[1739337887338,0.5767,2606.1,2605.7,0.6025]
[1739337887542,2.3147,2606.1,2605.8,3.2078]
[1739337888042,2.3147,2606.1,2605.7,0.6025]
[1739337888840,2.3147,2606.1,2605.5,3.8004]
[1739337901146,6.36561522,2606.0,2605.5,3.2078]
[1739337901349,6.36561522,2605.7,2605.1,0.0057512]
[1739337901548,3.15781522,2605.4,2605.1,0.0057512]
[1739337901846,2.3491,2605.3,2605.1,0.0057512]
[1739337902049,3.2078,2605.2,2605.1,0.0057512]
[1739337902246,2.3491,2605.3,2605.1,0.0057512]
[1739337906647,1.738,2605.3,2605.1,0.0057512]
[1739337907349,1.738,2605.3,2605.2,40.8]
[1739337907551,1.738,2605.3,2605.2,44.0078]
[1739337908154,0.6043,2605.5,2605.2,44.0078]
[1739337908351,1.738,2605.8,2605.3,3.15781522]
[1739337908746,1.738,2605.8,2605.5,3.2078]
[1739337908953,1.162,2606.1,2605.5,3.2078]
[1739337909149,0.6043,2606.1,2605.8,3.2078]
[1739337909355,1.738,2606.4,2605.8,3.2078]
[1739337909655,1.738,2606.4,2605.9,0.5724]
[1739337910557,1.738,2606.4,2606.1,3.2078]
[1739337910859,3.16354039,2606.6,2606.2,3.15781522]
[1739337910860,0.00572517,2606.6,2606.2,3.15781522]
[1739337911057,0.00572517,2606.6,2606.4,3.2078]
[1739337912462,2.3443,2607.1,2606.4,3.2078]
[1739337912759,2.3443,2607.1,2606.7,3.2078]
[1739337912951,2.3443,2607.1,2606.8,40.8]
[1739337915250,0.6063,2607.1,2606.8,40.8]
[1739337915864,0.0057512,2607.2,2606.8,40.8]
[1739337916052,0.0057512,2607.2,2606.9,3.15781522]
[1739337916250,0.0057512,2607.2,2607.0,3.2078]
[1739337918469,0.0057512,2607.2,2607.1,40.8]
[1739337919357,0.0057512,2607.2,2607.0,3.2078]
[1739337919860,0.0057512,2607.2,2607.0,44.0078]
[1739337920559,0.0057512,2607.2,2607.0,3.39877301]
[1739337923668,0.5574,2607.8,2607.1,0.5852]
[1739337923857,0.01375,2608.0,2607.6,3.2078]
[1739337923858,1.75075,2608.0,2607.6,3.2078]
[1739337924262,3.15781522,2607.8,2607.3,3.2078]
[1739337924463,0.06348661,2607.7,2607.3,3.2078]
[1739337924671,3.15781522,2607.5,2606.9,3.2078]
[1739337924866,2.3133,2607.4,2606.9,3.2078]
[1739337927367,3.7654,2607.6,2606.9,6.55895346]
[1739337927670,1.736,2607.5,2606.9,6.55895346]
[1739337929366,2.2936,2607.6,2606.9,6.55895346]
[1739337930172,3.2078,2608.5,2607.5,6.36561522]
[1739337930474,0.5762,2608.3,2607.8,6.36561522]
[1739337930770,0.5762,2608.3,2607.9,40.8]
[1739337931464,0.563,2608.2,2607.9,40.8]
[1739337931662,0.563,2608.2,2607.5,3.2078]
[1739337932166,0.563,2608.2,2607.6,40.8]
[1739337932366,3.15781522,2608.1,2607.6,40.8]
[1739337932567,3.15781522,2608.1,2607.5,3.2078]
[1739337932764,1.736,2608.0,2607.5,3.2078]
[1739337933269,1.736,2608.0,2607.5,44.0078]
[1739337933773,5.5068,2608.2,2607.5,44.0078]
[1739337937769,0.06347786,2608.1,2607.5,44.0078]
[1739337937969,3.2078,2607.9,2607.2,3.7598]
[1739337938277,3.2078,2607.6,2607.2,3.2078]
[1739337938478,1.17,2607.5,2607.2,3.2078]
[1739337938672,4.32781522,2607.5,2607.1,40.8]
[1739337938971,0.06349902,2607.4,2606.9,3.2078]
[1739337939378,0.5775,2607.3,2607.0,40.8]
[1739337939674,0.5775,2607.3,2606.9,3.2078]
[1739337940266,0.5775,2607.3,2606.9,44.0078]
[1739337942979,0.5775,2607.3,2606.9,40.8]
[1739337943378,3.2078,2607.2,2606.9,40.8]
[1739337943884,6.36561522,2607.2,2606.9,40.8]
[1739337944075,6.74961522,2607.2,2606.7,0.0057512]
[1739337944277,3.2078,2606.9,2606.7,0.0057512]
[1739337944476,0.5639,2606.8,2606.7,0.0057512]
[1739337945083,0.5639,2606.8,2606.7,40.8057512]
[1739337945781,0.5639,2606.8,2606.7,0.0057512]
[1739337949388,0.5639,2606.8,2606.7,40.8057512]
[1739337950288,1.736,2607.0,2606.7,40.8057512]
[1739337950585,0.5775,2607.3,2606.7,40.8057512]
[1739337950586,2.3257,2607.1,2606.7,40.8057512]
[1739337950780,2.3257,2607.1,2606.8,0.5907]
[1739337951380,0.5897,2607.1,2606.8,0.5907]
[1739337951581,0.5897,2607.1,2606.9,0.5761]
[1739337951781,1.736,2607.2,2606.9,0.5761]
[1739337951976,7.3586,2607.5,2606.9,0.5761]
[1739337952184,1.79949758,2607.4,2606.9,0.5761]
[1739337952383,4.3796,2607.5,2606.9,3.7839]
[1739337952690,5.5335,2607.5,2606.9,3.7839]
[1739337953292,3.54181522,2607.8,2606.9,6.94171522]
[1739337953293,3.2078,2607.8,2606.9,6.94171522]
[1739337953486,4.9438,2607.8,2606.9,6.94171522]
[1739337953687,4.9438,2607.8,2607.2,3.15781522]
[1739337955481,3.2078,2607.8,2607.2,3.15781522]
[1739337956491,3.2078,2607.8,2607.2,6.36561522]
[1739337956992,3.2078,2607.8,2607.3,0.19087031]
[1739337957187,3.2078,2607.8,2607.4,0.5891]
[1739337957390,3.2078,2607.8,2607.4,1.1804]
[1739337962498,1.736,2607.9,2607.5,3.2078]
[1739337962703,0.5736,2608.0,2607.5,3.2078]
[1739337963093,6.36561522,2608.4,2607.8,3.2078]
[1739337963297,2.3136,2608.3,2607.8,3.2078]
[1739337963999,2.3136,2608.3,2607.9,40.8]
[1739337964392,0.5786,2608.3,2607.9,40.8]
[1739337964595,2.3136,2608.3,2607.9,40.8]
[1739337965598,0.5786,2608.3,2607.9,40.8]
[1739337965804,0.5786,2608.3,2608.0,0.6022]
[1739337966898,3.2078,2608.4,2608.0,0.6022]
[1739337968701,0.5589,2608.6,2608.1,3.2078]
[1739337969094,0.5589,2608.6,2608.1,6.37136642]
[1739337969295,3.2078,2608.7,2608.1,6.37136642]
[1739337969506,3.2078,2608.7,2608.2,40.8]
[1739337970706,0.6112,2608.8,2608.2,40.8]
[1739337971496,0.61072579,2608.9,2608.7,3.15781522]
[1739337971696,3.2078,2609.3,2608.7,6.36561522]
[1739337972098,3.2078,2609.3,2608.8,41.3531]
[1739337974205,3.2078,2609.3,2608.8,41.9468]
[1739337974600,3.2078,2609.3,2608.8,41.3531]
[1739337974808,6.36561522,2609.3,2608.7,3.2078]
[1739337975018,0.06344979,2609.2,2608.7,3.2078]
[1739337975204,6.36561522,2609.0,2608.2,1.1772]
[1739337975406,1.7962,2608.9,2608.2,1.1772]
[1739337976505,1.7962,2608.9,2608.2,1.48107634]
[1739337976902,3.2078,2608.7,2608.2,0.30387634]
[1739337977104,3.2078,2608.7,2608.1,44.0135512]
[1739337977911,3.2078,2608.7,2608.1,44.31721469]
[1739337978517,3.2078,2608.7,2608.1,47.47502991]
[1739337979008,1.7962,2608.9,2608.5,3.2078]
[1739337979210,0.6104,2608.9,2608.5,3.2078]
[1739337979416,0.6104,2608.9,2608.6,1.1694]
[1739337980112,3.2078,2609.1,2608.6,1.1694]
[1739337980308,3.2078,2609.1,2608.7,3.74241522]
[1739337980811,3.2078,2609.1,2608.7,3.15781522]
[1739337981006,3.2078,2609.1,2608.6,1.1694]
[1739337981506,3.2078,2609.1,2608.7,0.18909513]
[1739337981708,3.2078,2609.1,2608.5,3.50974891]
[1739337982013,3.15781522,2609.0,2608.2,3.8019]
[1739337982214,0.63935686,2608.9,2608.2,3.8019]
[1739337982407,1.734,2608.8,2608.2,3.8019]
[1739337982607,4.9418,2608.8,2608.2,3.8019]
[1739337982808,0.5601,2608.7,2608.2,3.8019]
[1739337983112,3.71791522,2608.7,2608.2,3.2078]
[1739337983311,3.2078,2608.5,2608.1,40.8057512]
[1739337983610,3.76631522,2608.4,2608.1,40.8057512]
[1739337983809,4.33731522,2608.4,2608.1,40.8057512]
[1739337984210,1.1795,2608.4,2608.1,40.8057512]
[1739337985711,0.6085,2608.4,2608.1,40.8057512]
[1739337986210,1.1311,2608.7,2608.1,43.96356642]
[1739337986413,3.4301,2608.7,2608.2,3.2078]
[1739337986611,1.6961,2608.7,2608.2,3.8009]
[1739337987204,1.1251,2608.7,2608.5,3.2078]
[1739337989012,0.565,2608.7,2608.5,3.2078]
[1739337989214,0.6021,2609.1,2608.5,3.2078]
[1739337989215,0.5867,2609.0,2608.5,3.2078]
[1739337989417,1.168,2609.0,2608.5,3.8037]
[1739337990618,1.168,2609.0,2608.5,4.10939103]
[1739337993623,1.734,2609.3,2608.5,4.10939103]
[1739337993921,0.575,2609.4,2608.5,4.10939103]
[1739337993922,0.5718,2609.2,2608.5,4.10939103]
[1739337994312,0.5718,2609.2,2608.8,3.2078]
[1739337994820,0.5718,2609.2,2608.9,0.5705]
[1739337998515,3.7796,2609.2,2608.8,3.39830139]
[1739337998726,0.6114,2609.1,2608.8,3.39830139]
[1739337999019,0.6114,2609.1,2608.8,0.19050139]
[1739338000223,3.7796,2609.2,2608.8,0.19050139]
[1739338001122,3.2078,2608.9,2608.3,0.5631]
[1739338001319,2.9053,2608.8,2608.3,0.5631]
[1739338001522,0.5597,2608.7,2608.3,0.5631]
[1739338002225,3.2078,2608.6,2608.2,3.2078]
[1739338002618,3.2078,2608.6,2608.1,41.00225665]
[1739338003118,3.15781522,2608.4,2608.1,40.8057512]
[1739338003520,3.7677,2608.3,2608.1,40.8057512]
[1739338003724,0.5597,2608.2,2608.1,40.8057512]
[1739338003927,2.2937,2608.2,2608.1,40.8057512]
[1739338004823,1.734,2608.2,2608.1,40.8057512]
[1739338005118,2.3058,2608.6,2608.1,43.96356642]
[1739338005323,2.3058,2608.6,2608.2,1.135]
[1739338005924,2.3058,2608.6,2608.1,44.0135512]
[1739338006124,2.3058,2608.6,2608.1,40.8057512]
[1739338006326,0.06346893,2608.5,2608.1,40.8057512]
[1739338006628,2.3058,2608.6,2608.1,40.8057512]
[1739338010126,0.5718,2608.6,2608.1,40.8057512]
[1739338010327,1.734,2608.5,2608.2,3.2078]
[1739338011123,1.734,2608.5,2608.1,40.8057512]
[1739338014243,1.734,2608.5,2608.1,0.0057512]
[1739338014449,3.15781522,2608.2,2607.3,0.19087031]
[1739338014650,3.2078,2608.0,2607.2,0.18957691]
[1739338014851,1.79747168,2607.9,2607.3,40.8]
[1739338015050,1.734,2607.9,2607.3,40.8]
[1739338015347,1.734,2607.9,2607.1,0.5728]
[1739338015348,3.2078,2607.7,2607.1,0.5728]
[1739338015551,1.20159094,2607.6,2607.3,0.0057512]
[1739338015850,1.1381,2607.6,2607.3,0.0057512]
[1739338017558,1.6992,2607.6,2607.3,0.0057512]
[1739338020854,3.22130884,2607.5,2607.3,0.0057512]
[1739338021051,3.15781522,2607.5,2607.3,0.0057512]
[1739338021253,3.2712959,2607.4,2606.8,41.3709]
[1739338021450,1.7974959,2607.3,2606.8,41.3709]
[1739338021754,1.734,2607.3,2606.8,41.3709]
[1739338022350,1.734,2607.3,2606.9,3.767]
[1739338023463,1.6992,2607.6,2606.9,3.767]
[1739338023755,1.734,2607.5,2606.9,3.767]
[1739338023949,1.734,2607.5,2607.2,3.2078]
[1739338024152,1.734,2607.5,2607.3,0.5522]
[1739338024456,3.2078,2608.0,2607.3,0.5522]
[1739338024655,1.734,2607.8,2607.5,3.2078]
[1739338024860,1.734,2607.8,2607.4,0.5592]
[1739338025157,1.734,2607.8,2607.5,40.8]
[1739338026057,4.89181522,2607.8,2607.5,40.8]
[1739338026454,4.89181522,2607.8,2607.3,0.5522]
[1739338026653,3.2078,2607.7,2607.2,3.2078]
[1739338027053,4.89181522,2607.8,2607.3,40.8]
[1739338027254,1.734,2607.8,2607.3,40.8]
[1739338027456,1.734,2607.8,2607.5,3.2078]
[1739338027657,0.6092512,2607.9,2607.6,0.5923]
[1739338027851,1.45139875,2608.2,2607.8,3.2078]
[1739338028051,3.15781522,2608.7,2608.1,3.2078]
[1739338028052,1.734,2608.6,2608.1,3.2078]
[1739338028256,1.734,2608.6,2608.2,0.5649]
[1739338028664,4.9375,2608.8,2608.2,0.5649]
[1739338028959,1.734,2608.7,2608.2,0.5706512]
[1739338029156,1.734,2608.7,2608.2,1.1529512]
[1739338030562,5.5438512,2608.8,2608.2,1.1529512]
[1739338032564,5.5438512,2608.8,2608.3,40.8]
[1739338033262,5.5438512,2608.8,2608.2,1.1529512]
[1739338033762,5.5438512,2608.8,2608.2,41.9529512]
[1739338034162,0.6020512,2608.8,2608.4,3.2078]
[1739338034964,3.15781522,2608.7,2608.2,0.5706512]
[1739338035259,0.6020512,2608.8,2608.2,0.5706512]
[1739338036169,0.6020512,2608.8,2608.4,3.2078]
[1739338037359,0.0057512,2608.8,2608.7,3.2078]
[1739338037970,0.0057512,2608.8,2608.7,3.7806]
[1739338040073,0.0057512,2608.8,2608.6,0.6066]
[1739338040268,0.0057512,2608.8,2608.4,3.2078]
[1739338040977,1.733,2608.7,2608.3,0.583]
[1739338041279,1.1784,2608.6,2608.2,0.0057512]
[1739338041480,0.5735,2608.5,2608.2,0.0057512]
[1739338042278,1.733,2608.7,2608.2,0.0057512]
[1739338042878,0.5852,2608.6,2608.2,0.0057512]
[1739338043078,0.5852,2608.6,2608.2,0.20233029]
[1739338044381,0.5852,2608.6,2608.4,3.2078]
[1739338045284,1.733,2608.7,2608.4,3.2078]
[1739338046077,0.0057512,2608.8,2608.4,3.2078]
[1739338046980,0.0057512,2608.8,2608.5,3.15781522]
[1739338047279,0.0057512,2608.8,2608.4,3.2078]
[1739338047879,0.0057512,2608.8,2608.7,3.2078]
[1739338051479,0.0057512,2608.8,2608.7,3.8068]
[1739338051782,0.5751,2609.2,2608.7,3.8068]
[1739338052282,0.5751,2609.2,2608.8,0.5783]
[1739338052778,3.2078,2609.8,2609.1,3.2078]
[1739338052978,3.2712396,2609.7,2609.1,3.2078]
[1739338053174,0.6698396,2609.6,2609.1,3.2078]
[1739338053384,1.1643,2609.6,2609.1,3.2078]
[1739338054877,2.8973,2609.6,2609.1,3.2078]
[1739338061088,1.1643,2609.6,2609.1,3.2078]
[1739338062188,0.5741,2609.8,2609.4,3.2078]
[1739338063390,0.06343039,2609.7,2609.4,3.2078]
[1739338063989,0.5741,2609.8,2609.4,3.2078]
[1739338064287,0.06343501,2609.7,2609.4,3.2078]
[1739338064488,0.5741,2609.8,2609.4,3.2078]
[1739338064986,0.0634333,2609.7,2609.4,3.2078]
[1739338065289,0.5741,2609.8,2609.4,3.2078]
[1739338065991,1.1754,2610.0,2609.5,3.15781522]
[1739338066184,0.6082,2610.0,2609.5,4.31591522]
[1739338066386,5.5341,2610.1,2609.5,4.31591522]
[1739338066585,3.8011,2610.1,2609.5,4.31591522]
[1739338066784,0.5933,2610.1,2609.7,3.2078]
[1739338067180,0.5933,2610.1,2609.8,0.5552]
[1739338074696,0.5933,2610.1,2609.7,3.2078]
[1739338075395,0.5933,2610.1,2609.5,0.0057512]
[1739338075801,0.06342687,2610.0,2609.5,0.0057512]
[1739338076304,1.1316,2609.9,2609.5,0.0057512]
[1739338079496,1.732,2609.8,2609.5,0.0057512]
[1739338083211,1.1316,2609.9,2609.5,0.0057512]
[1739338083405,1.1316,2609.9,2609.5,0.6029512]
[1739338084002,1.1316,2609.9,2609.5,0.0057512]
[1739338087199,1.1316,2609.9,2609.6,3.2078]
[1739338088607,1.1316,2609.9,2609.5,0.0057512]
[1739338092402,1.1316,2609.9,2609.6,3.2078]
[1739338092808,0.5619,2609.9,2609.6,3.2078]
[1739338093009,0.5619,2609.9,2609.6,3.8161]
[1739338093207,0.5933,2610.1,2609.6,6.97391522]
[1739338093405,0.5933,2610.1,2609.6,7.53021522]
[1739338093909,0.5933,2610.1,2609.9,3.2078]
[1739338096811,3.15781522,2610.0,2609.5,0.0057512]
[1739338097012,3.15781522,2609.7,2609.5,0.0057512]
[1739338097317,1.1066,2609.6,2609.5,0.0057512]
[1739338099608,1.1066,2609.6,2609.3,3.2078]
[1739338102012,3.15781522,2609.4,2609.2,0.0057512]
[1739338102309,0.76673,2609.2,2608.1,3.2078]
[1739338102503,3.15781522,2608.3,2607.8,44.0078]
[1739338102705,3.15781522,2608.0,2607.8,44.0078]
[1739338103110,1.732,2608.1,2607.8,44.0078]
[1739338109314,0.0057512,2608.2,2607.8,44.0078]
[1739338109519,0.0057512,2608.2,2607.8,44.6156]
[1739338110923,0.0057512,2608.2,2608.1,3.2078]
[1739338116922,1.7377512,2608.2,2608.1,3.2078]
[1739338117232,1.7377512,2608.2,2607.8,44.0078]